fUSD/lending_fUSD_20260319
["ID","MTS","AMOUNT","RATE_DAILY","PERIOD"]
[408581170,1773904231588,-647370.0671592,9.643e-05,2]
[408581173,1773904231599,-64706.58462647,9.643e-05,2]
[408581175,1773904231611,-70708.22373805,9.643e-05,2]
[408581177,1773904231622,-105407.03671344,9.643e-05,2]
[408581182,1773904237387,-351.5,9.643e-05,2]
[408581183,1773904237448,-3514.33808734,9.643e-05,2]
[408581184,1773904237465,-10576.89999957,9.643e-05,2]
[408581185,1773904237518,-1032545.84635411,9.643e-05,2]
[408581186,1773904237527,-1632.8649,9.643e-05,2]
[408581187,1773904237537,-45481.2484,9.643e-05,2]
[408581188,1773904237547,-661.4018,9.643e-05,2]
[408581189,1773904237556,-1209.24616255,9.643e-05,2]
[408581190,1773904237566,-10147.82137612,9.643e-05,2]
[408581191,1773904237579,-1046.8329771,9.643e-05,2]
[408581192,1773904237588,-942.35170164,9.643e-05,2]
[408581193,1773904237598,-3708.5681,9.653e-05,2]
[408581194,1773904237606,-2500.0,9.653e-05,2]
[408581195,1773904237615,-200.0,9.7e-05,3]
[408581196,1773904237623,-300.0,9.7e-05,3]
[408581197,1773904237632,-500.0,9.733e-05,2]
[408581198,1773904237641,-87981.39208333,9.743e-05,2]
[408581199,1773904237650,-151.0,9.75e-05,2]
[408581200,1773904237658,-500.0,9.752e-05,2]
[408581201,1773904237667,-500.0,9.752e-05,2]
[408581202,1773904237676,-500.0,9.752e-05,2]
[408581203,1773904237684,-500.0,9.752e-05,2]
[408581204,1773904237693,-500.0,9.752e-05,2]
[408581205,1773904237702,-500.0,9.752e-05,2]
[408581206,1773904237711,-302.41849341,9.752e-05,2]
[408581207,1773904237720,-500.0,9.752e-05,2]
[408581208,1773904237728,-500.0,9.752e-05,2]
[408581209,1773904237738,-500.0,9.752e-05,2]
[408581210,1773904237747,-500.0,9.752e-05,2]
[408581211,1773904237757,-500.0,9.752e-05,2]
[408581212,1773904237765,-500.0,9.752e-05,2]
[408581213,1773904237774,-500.0,9.752e-05,2]
[408581215,1773904237783,-500.0,9.752e-05,2]
[408581217,1773904237792,-614.44636956,9.752e-05,2]
[408581218,1773904237801,-500.0,9.752e-05,2]
[408581219,1773904237811,-500.0,9.752e-05,2]
[408581220,1773904237820,-500.0,9.752e-05,2]
[408581221,1773904237830,-500.0,9.752e-05,2]
[408581222,1773904237840,-500.0,9.752e-05,2]
[408581223,1773904237850,-500.0,9.752e-05,2]
[408581224,1773904237862,-500.0,9.752e-05,2]
[408581225,1773904237871,-500.0,9.752e-05,2]
[408581226,1773904237881,-500.0,9.752e-05,2]
[408581227,1773904237891,-500.0,9.752e-05,2]
[408581228,1773904237900,-500.0,9.752e-05,2]
[408581229,1773904237909,-500.0,9.752e-05,2]
[408581230,1773904237919,-500.0,9.752e-05,2]
[408581231,1773904237928,-500.0,9.752e-05,2]
[408581232,1773904237938,-500.0,9.752e-05,2]
[408581233,1773904237947,-500.0,9.752e-05,2]
[408581234,1773904237956,-500.0,9.752e-05,2]
[408581235,1773904237965,-500.0,9.752e-05,2]
[408581236,1773904237978,-500.0,9.752e-05,2]
[408581237,1773904237988,-500.0,9.752e-05,2]
[408581238,1773904237998,-500.0,9.752e-05,2]
[408581239,1773904238008,-500.0,9.752e-05,2]
[408581240,1773904238018,-500.0,9.752e-05,2]
[408581241,1773904238028,-500.0,9.752e-05,2]
[408581242,1773904238038,-565.99340785,9.752e-05,2]
[408581243,1773904238048,-500.0,9.752e-05,2]
[408581244,1773904238058,-471.17951982,9.752e-05,2]
[408581245,1773904238068,-500.0,9.752e-05,2]
[408581246,1773904238077,-471.17951982,9.752e-05,2]
[408581247,1773904238087,-471.17951982,9.752e-05,2]
[408581248,1773904238096,-500.0,9.752e-05,2]
[408581249,1773904238106,-500.0,9.752e-05,2]
[408581250,1773904238115,-500.0,9.752e-05,2]
[408581251,1773904238125,-471.17951982,9.752e-05,2]
[408581252,1773904238139,-471.17951982,9.752e-05,2]
[408581253,1773904238151,-500.0,9.752e-05,2]
[408581254,1773904238161,-500.0,9.752e-05,2]
[408581255,1773904238172,-500.0,9.752e-05,2]
[408581256,1773904238184,-622.18470351,9.752e-05,2]
[408581257,1773904238193,-500.0,9.752e-05,2]
[408581258,1773904238202,-471.17951982,9.752e-05,2]
[408581259,1773904238212,-500.0,9.752e-05,2]
[408581260,1773904238221,-500.0,9.752e-05,2]
[408581261,1773904238231,-471.17951982,9.752e-05,2]
[408581262,1773904238240,-500.0,9.752e-05,2]
[408581263,1773904238250,-471.17951982,9.752e-05,2]
[408581264,1773904238259,-500.0,9.752e-05,2]
[408581265,1773904238269,-471.17951982,9.752e-05,2]
[408581266,1773904238278,-500.0,9.752e-05,2]
[408581267,1773904238287,-471.17951982,9.752e-05,2]
[408581268,1773904238296,-500.0,9.752e-05,2]
[408581269,1773904238306,-471.17951982,9.752e-05,2]
[408581270,1773904238316,-500.0,9.752e-05,2]
[408581271,1773904238325,-471.17951982,9.752e-05,2]
[408581272,1773904238335,-500.0,9.752e-05,2]
[408581273,1773904238345,-471.17951982,9.752e-05,2]
[408581274,1773904238355,-1065.50192028,9.752e-05,2]
[408581275,1773904238366,-9999.99,9.753e-05,2]
[408581276,1773904238378,-312.53,9.753e-05,2]
[408581277,1773904238389,-7162.23,9.753e-05,2]
[408581278,1773904238399,-2456.36,9.753e-05,2]
[408581279,1773904238408,-4999.99,9.753e-05,2]
[408581280,1773904238418,-22725.49,9.753e-05,2]
[408581281,1773904238697,-8448.51,9.753e-05,2]
[408581282,1773904238707,-499.99,9.753e-05,2]
[408581283,1773904238716,-517.27,9.753e-05,2]
[408581284,1773904238726,-9999.99,9.753e-05,2]
[408581285,1773904238735,-350.86,9.753e-05,2]
[408581286,1773904238745,-3202.45,9.753e-05,2]
[408581287,1773904238755,-3671.02,9.753e-05,2]
[408581288,1773904238764,-150.99,9.753e-05,2]
[408581289,1773904238774,-1000.0,9.78e-05,2]
[408581290,1773904238783,-9999.99,9.781e-05,2]
[408581291,1773904238793,-9999.99,9.781e-05,2]
[408581292,1773904238803,-14087.21,9.781e-05,2]
[408581293,1773904238812,-299.99,9.781e-05,2]
[408581294,1773904238822,-9999.99,9.781e-05,2]
[408581295,1773904238833,-999.99,9.781e-05,2]
[408581296,1773904238843,-1618.05,9.781e-05,2]
[408581297,1773904238853,-376480.0598828,9.781e-05,7]
[408581298,1773904238862,-32666.33008293,9.781e-05,7]
[408581299,1773904238873,-77927.40917088,9.8e-05,2]
[408581300,1773904238882,-500.0,9.8e-05,3]
[408581301,1773904238893,-600.0,9.8e-05,3]
[408581302,1773904238903,-254.0,9.826e-05,2]
[408581303,1773904238912,-500.0,9.833e-05,2]
[408581304,1773904238922,-500.0,9.833e-05,2]
[408581305,1773904238932,-512.51857515,9.833e-05,2]
[408581306,1773904238942,-500.0,9.833e-05,2]
[408581307,1773904238952,-500.0,9.833e-05,2]
[408581308,1773904238961,-1898.0,9.841e-05,2]
[408581309,1773904238972,-1000.0,9.853e-05,2]
[408581310,1773904238982,-388411.15642625,9.853e-05,2]
[408581311,1773904239377,-75571.14173838,9.853e-05,2]
[408581312,1773904239388,-423.7399945,9.853e-05,2]
[408581315,1773904239429,-3254.43524324,9.853e-05,2]
[408581316,1773904239447,-304.6875878,9.853e-05,2]
[408581317,1773904239459,-317.0,9.853e-05,2]
[408581318,1773904239470,-59853.37980983,9.853e-05,2]
[408581320,1773904239479,-18793.7713851,9.853e-05,2]
[408581322,1773904239971,-14180.9143149,9.853e-05,2]
[408581323,1773904239981,-1058.675,9.854e-05,2]
[408581324,1773904239990,-1306.0,9.86e-05,2]
[408581325,1773904239999,-801.0,9.864e-05,2]
[408581326,1773904240009,-867.0,9.88e-05,2]
[408581327,1773904240018,-945.0,9.883e-05,2]
[408581328,1773904240029,-700.0,9.9e-05,3]
[408581329,1773904240038,-1000.0,9.9e-05,3]
[408581330,1773904240047,-1646.0,9.903e-05,2]
[408581331,1773904240056,-1852.42,9.921e-05,2]
[408581332,1773904240066,-734.40935086,0.0001,2]
[408581333,1773904240076,-1822.20087838,0.0001,2]
[408581334,1773904240085,-539.22026917,0.0001,2]
[408581335,1773904240094,-531.30958633,0.0001,2]
[408581336,1773904240103,-511.26746575,0.0001,2]
[408581337,1773904240113,-511.26746575,0.0001,2]
[408581338,1773904240122,-511.26746575,0.0001,2]
[408581339,1773904240131,-160.0,0.0001,2]
[408581340,1773904240144,-448.15639563,0.0001,2]
[408581341,1773904240154,-565.287916,0.0001,2]
[408581342,1773904240163,-500.0,0.0001,2]
[408581343,1773904240172,-500.0,0.0001,2]
[408581344,1773904240183,-500.0,0.0001,2]
[408581345,1773904240192,-500.0,0.0001,2]
[408581346,1773904240201,-500.0,0.0001,2]
[408581347,1773904240212,-500.0,0.0001,2]
[408581348,1773904240221,-500.0,0.0001,2]
[408581349,1773904240231,-500.0,0.0001,2]
[408581350,1773904240241,-434.959087,0.0001,2]
[408581351,1773904240250,-200.0,0.0001,2]
[408581352,1773904240262,-1000.0,0.0001,3]
[408581353,1773904240273,-230.58135209,0.0001,2]
[408581354,1773904240283,-1300.0,0.0001,3]
[408581355,1773904240293,-500.0,0.00010026,2]
[408581356,1773904240303,-4363.86,0.00010084,2]
[408581357,1773904240313,-500.0,0.00010084,2]
[408581358,1773904240324,-2000.0,0.00010104,2]
[408581359,1773904240334,-166.66,0.00010143,2]
[408581360,1773904240344,-875.44189071,0.00010281,2]
[408581361,1773904240354,-500.0,0.000103,2]
[408581363,1773904240364,-501.23260465,0.00010381,2]
[408581365,1773904240375,-1000.0,0.00010381,2]
[408581366,1773904240387,-1000.0,0.00010381,2]
[408581367,1773904240410,-1000.0,0.00010381,2]
[408581368,1773904240421,-9999.99,0.00010475,2]
[408581369,1773904240431,-10379.68,0.00010475,2]
[408581370,1773904240445,-3807.71,0.00010475,2]
[408581371,1773904240456,-166.66,0.00010478,2]
[408581372,1773904240467,-200.0,0.00010548,2]
[408581373,1773904240477,-193.0,0.0001056,2]
[408581374,1773904240498,-250.0,0.0001056,2]
[408581375,1773904240509,-3751.33385549,0.0001056,2]
[408581376,1773904240518,-500.0,0.00010574,2]
[408581377,1773904240528,-5000.0,0.00010578,2]
[408581378,1773904240538,-600.0,0.0001058,2]
[408581379,1773904240548,-303.0,0.00010606,2]
[408581380,1773904240557,-420.0,0.00010606,2]
[408581381,1773904240567,-255.0,0.00010606,2]
[408581382,1773904240576,-1680.0,0.00010606,2]
[408581383,1773904240585,-420.0,0.00010606,2]
[408581384,1773904240595,-250.0,0.00010606,2]
[408581385,1773904240604,-193.63757919,0.00010618,2]
[408581386,1773904240614,-253.55651067,0.00010618,2]
[408581387,1773904240623,-5000.0,0.00010618,2]
[408581388,1773904240632,-320.0,0.00010726,2]
[408581389,1773904240644,-3434.12,0.00010804,2]
[408581390,1773904240653,-166.66,0.00010813,2]
[408581391,1773904240662,-500.0,0.00010848,2]
[408581392,1773904240671,-1200.0,0.000109,3]
[408581393,1773904240681,-5757.7695272,0.000109,2]
[408581394,1773904240690,-5757.76952716,0.000109,2]
[408581395,1773904240699,-1700.0,0.000109,3]
[408581396,1773904240709,-1500.0,0.00010928,2]
[408581397,1773904240719,-1500.0,0.00010928,2]
[408581398,1773904240728,-1500.0,0.00010928,2]
[408581399,1773904240737,-500.0,0.00010958,2]
[408581400,1773904240747,-500.0,0.00010958,3]
[408581401,1773904240756,-500.0,0.00010958,4]
[408581402,1773904240765,-500.0,0.00010958,5]
[408581403,1773904240775,-500.0,0.00010958,6]
[408581404,1773904240784,-500.0,0.00010958,7]
[408581405,1773904240795,-500.0,0.00010958,8]
[408581406,1773904240804,-500.0,0.00010958,9]
[408581407,1773904240814,-166.66,0.00010959,2]
[408581408,1773904240823,-7836.06,0.00010959,2]
[408581409,1773904240832,-500.0,0.00010959,2]
[408581410,1773904240844,-500.0,0.00010959,2]
[408581411,1773904240853,-500.0,0.00010959,2]
[408581412,1773904240863,-281.02190875,0.00010959,2]
[408581413,1773904240872,-300.0,0.00011,2]
[408581414,1773904240882,-230.58135209,0.00011011,2]
[408581415,1773904240892,-190396.99333717,0.00011021,2]
[408581416,1773904240902,-166.66,0.00011068,2]
[408581417,1773904240922,-200.0,0.00011096,2]
[408581418,1773904240932,-12190.63811462,0.00011099,2]
[408581419,1773904240941,-12190.63811458,0.00011099,2]
[408581420,1773904240951,-12190.63811458,0.00011099,2]
[408581421,1773904240961,-12190.63811458,0.00011099,2]
[408581422,1773904240970,-28035.86921729,0.00011099,2]
[408581423,1773904240980,-28035.86921723,0.00011099,2]
[408581424,1773904240989,-28035.86921723,0.00011099,2]
[408581425,1773904240999,-28035.86921723,0.00011099,2]
[408581426,1773904241009,-500.0,0.00011122,2]
[408581427,1773904241018,-166.66,0.00011148,2]
[408581428,1773904241028,-166.66,0.00011178,2]
[408581429,1773904241038,-166.66,0.00011288,2]
[408581430,1773904241048,-12190.63811458,0.00011346,2]
[408581431,1773904241057,-28035.86921723,0.00011352,2]
[408581432,1773904241066,-5757.76952716,0.00011359,2]
[408581433,1773904241076,-2000.0,0.00011367,2]
[408581434,1773904241086,-327.835136,0.00011368,2]
[408581435,1773904241096,-293.255739,0.00011368,2]
[408581436,1773904241105,-206.307758,0.00011368,2]
[408581437,1773904241115,-160.0,0.00011368,2]
[408581438,1773904241124,-329.632391,0.00011368,2]
[408581439,1773904241134,-499.264782,0.00011368,2]
[408581440,1773904241143,-500.0,0.00011396,2]
[408581441,1773904241155,-166.66,0.00011397,2]
[408581442,1773904241165,-2000.0,0.00011476,2]
[408581443,1773904241174,-2000.0,0.00011476,2]
[408581444,1773904241185,-2000.0,0.00011476,2]
[408581445,1773904241195,-166.66,0.00011482,2]
[408581446,1773904241204,-166.66,0.00011507,2]
[408581447,1773904241216,-2859.14,0.00011507,2]
[408581448,1773904241226,-194.486331,0.00011561,2]
[408581449,1773904241235,-2180.44,0.000116,2]
[408581450,1773904241244,-2918.92,0.000116,2]
[408581451,1773904241253,-1260.64,0.000116,2]
[408581452,1773904241263,-884.94,0.000116,2]
[408581453,1773904241272,-1418.32,0.000116,2]
[408581454,1773904241281,-463.85,0.000116,2]
[408581455,1773904241290,-894.78,0.000116,2]
[408581456,1773904241299,-506.84,0.000116,2]
[408581457,1773904241309,-2227.26,0.000116,2]
[408581458,1773904241319,-640.72,0.000116,2]
[408581459,1773904241328,-564.19,0.000116,2]
[408581460,1773904241338,-2890.71,0.000116,2]
[408581461,1773904241347,-2517.41,0.000116,2]
[408581462,1773904241356,-864.17,0.000116,2]
[408581463,1773904241365,-1650.72,0.000116,2]
[408581464,1773904241375,-522.54,0.000116,2]
[408581465,1773904241384,-592.3,0.000116,2]
[408581466,1773904241395,-247.87,0.000116,2]
[408581467,1773904241404,-377.36,0.000116,2]
[408581468,1773904241413,-2204.37,0.000116,2]
[408581469,1773904241421,-707.43,0.000116,2]
[408581470,1773904241429,-2628.25,0.000116,2]
[408581471,1773904241438,-2937.8,0.000116,2]
[408581472,1773904241446,-1133.56,0.000116,2]
[408581473,1773904241454,-2641.43,0.000116,2]
[408581474,1773904241463,-1589.84,0.000116,2]
[408581475,1773904241471,-1175.98,0.000116,2]
[408581476,1773904241479,-1497.27,0.000116,2]
[408581477,1773904241487,-293.99,0.000116,2]
[408581478,1773904241495,-1713.78,0.000116,2]
[408581479,1773904241504,-293.99,0.000116,2]
[408581480,1773904241512,-1539.42,0.000116,2]
[408581481,1773904241520,-293.99,0.000116,2]
[408581482,1773904241529,-2664.27,0.000116,2]
[408581483,1773904241538,-293.99,0.000116,2]
[408581484,1773904241547,-662.63,0.000116,2]
[408581485,1773904241556,-2842.94,0.000116,2]
[408581486,1773904241564,-355.5,0.000116,2]
[408581487,1773904241572,-240.61,0.000116,2]
[408581488,1773904241581,-317.686068,0.00011627,2]
[408581489,1773904241589,-239.075712,0.00011627,2]
[408581490,1773904241598,-160.0,0.00011627,2]
[408581491,1773904241606,-195.419155,0.00011627,2]
[408581492,1773904241615,-230.838311,0.00011627,2]
[408581493,1773904241624,-200.0,0.00011644,2]
[408581494,1773904241633,-587.0,0.00011667,2]
[408581495,1773904241645,-433.0,0.00011667,2]
[408581496,1773904241654,-2351.0,0.00011667,2]
[408581497,1773904241663,-500.0,0.0001167,2]
[408581498,1773904241673,-12190.63811458,0.00011797,2]
[408581499,1773904241682,-28035.86921723,0.00011801,2]
[408581500,1773904241691,-166.66,0.00011817,2]
[408581501,1773904241701,-228.788521,0.00011858,2]
[408581502,1773904241710,-334.0,0.00011888,2]
[408581503,1773904241719,-473.0935161,0.00011944,2]
[408581504,1773904241728,-2500.0,0.00012024,2]
[408581505,1773904241737,-242.14675878,0.00012024,2]
[408581506,1773904241746,-2500.0,0.00012024,2]
[408581507,1773904241756,-1072.66289455,0.0001211,2]
[408581508,1773904241766,-789.63797914,0.00012172,2]
[408581509,1773904241775,-200.0,0.00012192,2]
[408581510,1773904241785,-12190.63811458,0.00012248,2]
[408581511,1773904241794,-28035.86921723,0.00012251,2]
[408581512,1773904241804,-5757.76952716,0.00012267,2]
[408581513,1773904241812,-163.64,0.00012548,2]
[408581514,1773904241821,-1000.0,0.00012572,2]
[408581515,1773904241829,-2677.93691604,0.00012572,2]
[408581516,1773904241839,-2000.0,0.0001263,2]
[408581517,1773904241847,-7914.65941268,0.00012664,2]
[408581518,1773904241864,-12190.63811458,0.00012698,2]
[408581519,1773904241872,-28035.86921723,0.00012701,2]
[408581520,1773904241881,-200.0,0.0001274,2]
[408581521,1773904241890,-600.0,0.00012749,2]
[408581522,1773904241900,-448.15639561,0.00012762,2]
[408581523,1773904241910,-823.0,0.00012833,2]
[408581524,1773904241920,-736.0,0.00012833,2]
[408581525,1773904241930,-3292.0,0.00012833,2]
[408581526,1773904241939,-334.0,0.00012888,2]
[408581527,1773904241949,-320.0,0.00012978,2]
[408581528,1773904241958,-151.0,0.00013138,2]
[408581529,1773904241968,-151.0,0.00013138,2]
[408581530,1773904241977,-151.0,0.00013138,2]
[408581531,1773904241986,-151.0,0.00013138,2]
[408581532,1773904241996,-151.0,0.00013138,2]
[408581533,1773904242005,-151.0,0.00013138,2]
[408581535,1773904242324,-151.0,0.00013138,2]
[408581536,1773904242334,-151.0,0.00013138,2]
[408581537,1773904242343,-225.91421318,0.00013138,2]
[408581538,1773904242353,-603.88502655,0.00013145,2]
[408581539,1773904242363,-12190.63811458,0.00013149,2]
[408581540,1773904242372,-28035.86921723,0.0001315,2]
[408581541,1773904242383,-5757.76952716,0.00013176,2]
[408581542,1773904242394,-151.0,0.00013193,2]
[408581543,1773904242404,-501.0,0.00013333,2]
[408581544,1773904242414,-160.0,0.00013371,2]
[408581545,1773904242424,-979.16666667,0.00013381,2]
[408581546,1773904242433,-500.0,0.00013418,2]
[408581547,1773904242443,-500.0,0.00013418,2]
[408581548,1773904242452,-500.0,0.00013418,2]
[408581549,1773904242463,-461.65354003,0.00013418,2]
[408581550,1773904242473,-150.0,0.00013418,2]
[408581551,1773904242482,-172.33361758,0.00013418,2]
[408581552,1773904242492,-500.0,0.00013418,2]
[408581553,1773904242502,-500.0,0.00013418,2]
[408581554,1773904242512,-190.77647721,0.00013418,2]
[408581555,1773904242523,-150.0,0.00013418,2]
[408581556,1773904242532,-150.0,0.00013418,2]
[408581557,1773904242542,-150.0,0.00013418,2]
[408581558,1773904242551,-150.0,0.00013418,2]
[408581559,1773904242561,-150.0,0.00013418,2]
[408581560,1773904242573,-239.07414574,0.00013418,2]
[408581561,1773904242583,-150.94227271,0.00013418,2]
[408581562,1773904242593,-500.0,0.00013418,2]
[408581563,1773904242602,-500.0,0.00013418,2]
[408581564,1773904242611,-227.30575448,0.00013418,2]
[408581565,1773904242621,-500.0,0.00013421,2]
[408581566,1773904242630,-500.0,0.00013421,2]
[408581567,1773904242639,-500.0,0.00013421,2]
[408581568,1773904242649,-399.25540835,0.00013421,2]
[408581569,1773904242658,-150.0,0.00013421,2]
[408581570,1773904242668,-150.0,0.00013421,2]
[408581571,1773904242677,-150.0,0.00013421,2]
[408581572,1773904242687,-280.14759695,0.00013421,2]
[408581573,1773904242696,-150.0,0.00013421,2]
[408581574,1773904242706,-150.0,0.00013421,2]
[408581575,1773904242716,-150.0,0.00013421,2]
[408581576,1773904242726,-150.0,0.00013421,2]
[408581577,1773904242735,-286.48877466,0.00013421,2]
[408581578,1773904242745,-150.0,0.00013421,2]
[408581579,1773904242754,-150.0,0.00013421,2]
[408581580,1773904242763,-156.12652739,0.00013421,2]
[408581581,1773904242773,-150.0,0.00013421,2]
[408581582,1773904242782,-150.0,0.00013421,2]
[408581583,1773904242792,-178.47147906,0.00013421,2]
[408581584,1773904242801,-150.0,0.00013421,2]
[408581585,1773904242811,-150.0,0.00013421,2]
[408581586,1773904242821,-150.0,0.00013421,2]
[408581587,1773904242831,-202.13850988,0.00013421,2]
[408581588,1773904242841,-154.75024109,0.00013421,2]
[408581589,1773904242852,-500.0,0.00013421,2]
[408581590,1773904242863,-500.0,0.00013421,2]
[408581591,1773904242874,-500.0,0.00013421,2]
[408581592,1773904242884,-500.0,0.00013421,2]
[408581593,1773904242895,-500.0,0.00013421,2]
[408581594,1773904242905,-500.0,0.00013421,2]
[408581595,1773904242916,-556.13980161,0.00013421,2]
[408581596,1773904242927,-500.0,0.00013421,2]
[408581597,1773904242937,-500.0,0.00013421,2]
[408581598,1773904242948,-500.0,0.00013421,2]
[408581599,1773904242960,-500.0,0.00013421,2]
[408581600,1773904242970,-500.0,0.00013421,2]
[408581601,1773904242981,-500.0,0.00013421,2]
[408581602,1773904242991,-542.50378378,0.00013421,2]
[408581603,1773904243001,-500.0,0.00013421,2]
[408581604,1773904243011,-500.0,0.00013421,2]
[408581605,1773904243021,-608.69659724,0.00013421,2]
[408581606,1773904243031,-500.0,0.00013421,2]
[408581607,1773904243041,-500.0,0.00013421,2]
[408581608,1773904243051,-500.0,0.00013421,2]
[408581609,1773904243062,-500.0,0.00013421,2]
[408581610,1773904243072,-500.0,0.00013421,2]
[408581611,1773904243082,-500.0,0.00013421,2]
[408581612,1773904243092,-500.0,0.00013421,2]
[408581613,1773904243101,-500.0,0.00013421,2]
[408581614,1773904243112,-500.0,0.00013421,2]
[408581615,1773904243122,-500.0,0.00013421,2]
[408581616,1773904243132,-520.81453038,0.00013421,2]
[408581617,1773904243142,-500.0,0.00013421,2]
[408581618,1773904243155,-500.0,0.00013421,2]
[408581619,1773904243165,-500.0,0.00013421,2]
[408581620,1773904243174,-500.0,0.00013421,2]
[408581621,1773904243184,-500.0,0.00013421,2]
[408581622,1773904243195,-500.0,0.00013421,2]
[408581623,1773904243205,-500.0,0.00013421,2]
[408581624,1773904243216,-214.94352647,0.00013421,2]
[408581625,1773904243226,-500.0,0.00013421,2]
[408581626,1773904243236,-500.0,0.00013421,2]
[408581627,1773904243246,-500.0,0.00013421,2]
[408581628,1773904243255,-500.0,0.00013421,2]
[408581629,1773904243265,-500.0,0.00013421,2]
[408581630,1773904243275,-500.0,0.00013421,2]
[408581631,1773904243284,-500.0,0.00013421,2]
[408581632,1773904243294,-500.0,0.00013421,2]
[408581633,1773904243303,-500.0,0.00013421,2]
[408581634,1773904243313,-500.0,0.00013421,2]
[408581635,1773904243323,-500.0,0.00013421,2]
[408581636,1773904243333,-500.0,0.00013421,2]
[408581637,1773904243343,-500.0,0.00013421,2]
[408581638,1773904243353,-500.0,0.00013421,2]
[408581639,1773904243363,-500.0,0.00013421,2]
[408581640,1773904243373,-500.0,0.00013421,2]
[408581641,1773904243383,-255.16033753,0.00013421,2]
[408581642,1773904243393,-500.0,0.00013421,2]
[408581643,1773904243403,-500.0,0.00013421,2]
[408581644,1773904243413,-500.0,0.00013421,2]
[408581645,1773904243423,-500.0,0.00013421,2]
[408581646,1773904243433,-150.0,0.00013421,2]
[408581647,1773904243443,-500.0,0.00013421,2]
[408581648,1773904243453,-207.36459101,0.00013421,2]
[408581649,1773904243463,-500.0,0.00013421,2]
[408581650,1773904243473,-500.0,0.00013421,2]
[408581651,1773904243482,-500.0,0.00013421,2]
[408581652,1773904243492,-623.58090901,0.00013421,2]
[408581653,1773904243502,-500.0,0.00013421,2]
[408581654,1773904243512,-500.0,0.00013421,2]
[408581655,1773904243522,-500.0,0.00013421,2]
[408581656,1773904243531,-500.0,0.00013421,2]
[408581657,1773904243541,-500.0,0.00013421,2]
[408581658,1773904243551,-500.0,0.00013421,2]
[408581659,1773904243562,-500.0,0.00013421,2]
[408581660,1773904243572,-500.0,0.00013421,2]
[408581661,1773904243582,-500.0,0.00013421,2]
[408581662,1773904243591,-500.0,0.00013421,2]
[408581663,1773904243600,-500.0,0.00013421,2]
[408581664,1773904243611,-500.0,0.00013421,2]
[408581665,1773904243621,-364.3001579,0.00013421,2]
[408581666,1773904243631,-500.0,0.00013421,2]
[408581667,1773904243641,-500.0,0.00013421,2]
[408581668,1773904243651,-500.0,0.00013421,2]
[408581669,1773904243662,-261.00219026,0.00013421,2]
[408581670,1773904243671,-435.0,0.00013421,2]
[408581671,1773904243681,-435.0,0.00013421,2]
[408581672,1773904243691,-435.0,0.00013421,2]
[408581673,1773904243700,-435.0,0.00013421,2]
[408581674,1773904243710,-500.0,0.00013421,2]
[408581675,1773904243720,-435.0,0.00013421,2]
[408581676,1773904243729,-435.0,0.00013421,2]
[408581677,1773904243739,-435.0,0.00013421,2]
[408581678,1773904243749,-435.0,0.00013421,2]
[408581679,1773904243758,-435.0,0.00013421,2]
[408581680,1773904243768,-435.0,0.00013421,2]
[408581681,1773904243777,-435.0,0.00013421,2]
[408581682,1773904243787,-435.0,0.00013421,2]
[408581683,1773904243797,-257.5653502,0.00013421,2]
[408581684,1773904243807,-435.0,0.00013421,2]
[408581685,1773904243816,-435.0,0.00013421,2]
[408581686,1773904243826,-435.0,0.00013421,2]